fUSD/lending_fUSD_20250113
["ID","MTS","AMOUNT","RATE_DAILY","PERIOD"]
[348771347,1736778637792,-2859.54,0.00035589,120]
[348771348,1736778637835,-2859.54,0.00035589,120]
[348771353,1736778637880,-2859.54,0.00035589,120]
[348771354,1736778637925,-2859.54,0.00035589,120]
[348771355,1736778637967,-2859.54,0.00035589,120]
[348771356,1736778638006,-2859.54,0.00035589,120]
[348771357,1736778638046,-2859.54,0.00035589,120]
[348771358,1736778638083,-2859.54,0.00035589,120]
[348771359,1736778638121,-2859.54,0.00035589,120]
[348771360,1736778638158,-2859.54,0.00035589,120]
[348771361,1736778638366,-2859.54,0.00035589,120]
[348771365,1736778638407,-2859.54,0.00035589,120]
[348771370,1736778638446,-2859.54,0.00035589,120]
[348771376,1736778638489,-2859.54,0.00035589,120]
[348771380,1736778638530,-2859.54,0.00035589,120]
[348771389,1736778638569,-2859.54,0.00035589,120]
[348771396,1736778638609,-2859.54,0.00035589,120]
[348771401,1736778638648,-2859.77248243,0.00035589,120]
[348771406,1736778638686,-500.0,0.00035599,120]
[348771411,1736778638727,-200.0,0.00035616,60]
[348771416,1736778638767,-156.963,0.0003589,120]
[348771421,1736778638807,-151.0,0.00035918,120]
[348771426,1736778638847,-259.02222222,0.00035945,120]
[348771431,1736778638890,-150.0,0.00035972,120]
[348771436,1736778638930,-504.0,0.00035987,120]
[348771442,1736778638974,-100000.0,0.00036,36]
[348771447,1736778639016,-1000.0,0.00036,120]
[348771452,1736778639056,-2000.0,0.00036,30]
[348771457,1736778639094,-32190.0,0.00036,120]
[348771462,1736778639133,-50000.0,0.00036,120]
[348771467,1736778639171,-886.62226,0.00036088,30]
[348771472,1736778639209,-500.0,0.00036199,120]
[348771475,1736778639253,-150.0,0.00036235,120]
[348771476,1736778639289,-886.62226,0.00036288,30]
[348771477,1736778639329,-185.18518,0.000363,120]
[348771478,1736778639369,-886.62226,0.00036488,30]
[348771479,1736778639410,-2497.0,0.00036498,64]
[348771480,1736778639451,-1826.353,0.00036508,45]
[348771481,1736778639495,-3546.13600868,0.00036666,120]
[348771482,1736778639533,-886.62226,0.00036688,30]
[348771483,1736778639573,-150.0,0.00036786,120]
[348771484,1736778639615,-259.02222222,0.00036795,120]
[348771485,1736778639656,-500.0,0.00036799,120]
[348771486,1736778639699,-5056.83525,0.00036822,30]
[348771487,1736778639742,-151.0,0.00036904,120]
[348771488,1736778639789,-100000.0,0.00037,37]
[348771489,1736778639834,-1000.0,0.00037,120]
[348771490,1736778639877,-10000.0,0.00037,60]
[348771491,1736778639921,-3000.0,0.00037,60]
[348771492,1736778639971,-85560.22092177,0.00037,90]
[348771494,1736778640014,-50000.0,0.00037,120]
[348771495,1736778640058,-14392.0,0.00037,117]
[348771496,1736778640098,-10025.88436834,0.00037,120]
[348771497,1736778640137,-1075.0,0.00037042,30]
[348771498,1736778640176,-886.62226,0.00037088,30]
[348771499,1736778640218,-156.949,0.0003709,120]
[348771500,1736778640257,-150.0,0.00037254,120]
[348771501,1736778640299,-886.62226,0.00037288,30]
[348771502,1736778640340,-500.0,0.00037399,120]
[348771503,1736778640380,-1906393.05472944,0.000374,120]
[348771524,1736778642876,-1000.0,9.045e-05,2]
[348771527,1736778642887,-1347.68,9.134e-05,2]
[348771531,1736778642896,-184.235922,9.442e-05,2]
[348771534,1736778642905,-161.871058,9.442e-05,2]
[348771538,1736778642915,-171.942338,9.442e-05,2]
[348771542,1736778642925,-1900.0,9.5e-05,3]
[348771543,1736778642935,-3800.0,9.6e-05,3]
[348771544,1736778642944,-5700.0,9.7e-05,3]
[348771545,1736778642953,-7600.0,9.8e-05,3]
[348771547,1736778642963,-7277.0105,9.888e-05,2]
[348771548,1736778642972,-8944.90816187,9.898e-05,2]
[348771549,1736778642983,-303.3793,9.898e-05,2]
[348771550,1736778642992,-168.8545,9.898e-05,2]
[348771551,1736778643001,-8852.2279716,9.898e-05,2]
[348771552,1736778643038,-794.34244352,9.898e-05,2]
[348771553,1736778643050,-3457.87183613,9.898e-05,2]
[348771554,1736778643061,-1000.0,9.898e-05,2]
[348771555,1736778643073,-6643.50304875,9.898e-05,2]
[348771556,1736778643083,-2100.0,9.9e-05,3]
[348771557,1736778643092,-9500.0,9.9e-05,3]
[348771558,1736778643102,-584.27805932,9.9e-05,2]
[348771559,1736778643111,-169.97438,9.985e-05,2]
[348771560,1736778643120,-156.456816,9.985e-05,2]
[348771561,1736778643129,-159.353239,9.985e-05,2]
[348771562,1736778643139,-156.456816,9.987e-05,2]
[348771563,1736778643149,-158.901735,9.987e-05,2]
[348771564,1736778643158,-158.901736,9.987e-05,2]
[348771565,1736778643167,-1140.67258345,9.987e-05,3]
[348771566,1736778643177,-822.75,9.987e-05,2]
[348771567,1736778643186,-500.0,9.987e-05,2]
[348771568,1736778643195,-500.0,9.987e-05,2]
[348771569,1736778643204,-500.0,9.987e-05,2]
[348771570,1736778643214,-500.0,9.987e-05,2]
[348771571,1736778643226,-500.0,9.987e-05,2]
[348771572,1736778643236,-500.0,9.987e-05,2]
[348771573,1736778643245,-500.0,9.987e-05,2]
[348771574,1736778643255,-500.0,9.987e-05,2]
[348771575,1736778643264,-500.0,9.987e-05,2]
[348771576,1736778643273,-501.18021556,9.987e-05,2]
[348771577,1736778643283,-30583.28505647,9.988e-05,2]
[348771578,1736778643295,-301.46352215,9.988e-05,2]
[348771579,1736778643306,-44490.20386451,9.988e-05,2]
[348771582,1736778643413,-5032.89807204,9.988e-05,2]
[348771586,1736778645621,-500.0,9.987e-05,2]
[348771587,1736778645631,-500.0,9.987e-05,2]
[348771588,1736778645640,-500.0,9.987e-05,2]
[348771589,1736778645650,-564.25,9.987e-05,2]
[348771590,1736778645659,-500.0,9.987e-05,2]
[348771591,1736778645668,-500.0,9.987e-05,2]
[348771592,1736778645677,-500.0,9.987e-05,2]
[348771593,1736778645686,-500.0,9.987e-05,2]
[348771594,1736778645695,-1199.58148513,9.988e-05,2]
[348771595,1736778645706,-1984.799535,9.988e-05,2]
[348771596,1736778645833,-1977.13860816,9.988e-05,2]
[348771597,1736778645848,-46268.49999996,9.988e-05,2]
[348771598,1736778645905,-500.0,9.987e-05,2]
[348771599,1736778645915,-12315.31629093,9.988e-05,2]
[348771600,1736778645928,-371.938,9.988e-05,2]
[348771602,1736778646465,-500.0,9.987e-05,2]
[348771603,1736778646476,-500.0,9.987e-05,2]
[348771604,1736778646486,-1459.20544655,9.988e-05,2]
[348771606,1736778646498,-1852.0,9.988e-05,2]
[348771609,1736778646527,-236274.49087592,9.988e-05,2]
[348771611,1736778646537,-1000.0,9.99e-05,2]
[348771612,1736778646547,-1000.0,9.99e-05,2]
[348771613,1736778646556,-1000.0,9.99e-05,2]
[348771614,1736778646566,-1000.0,9.99e-05,2]
[348771615,1736778646584,-1000.0,9.99e-05,2]
[348771616,1736778646594,-1000.0,9.99e-05,2]
[348771617,1736778646605,-495.0,9.99e-05,3]
[348771618,1736778646615,-1000.0,9.99e-05,2]
[348771619,1736778646625,-1000.0,9.99e-05,2]
[348771621,1736778646635,-1000.0,9.99e-05,3]
[348771622,1736778646645,-1000.0,9.99e-05,2]
[348771623,1736778646655,-1000.0,9.99e-05,2]
[348771624,1736778646665,-1000.0,9.99e-05,2]
[348771625,1736778646675,-1000.0,9.99e-05,2]
[348771626,1736778646685,-1002.0,9.99e-05,2]
[348771627,1736778646695,-1000.0,9.99e-05,2]
[348771628,1736778646705,-161.871058,9.99e-05,2]
[348771629,1736778646714,-500.0,9.995e-05,2]
[348771630,1736778646736,-156.456816,9.995e-05,2]
[348771631,1736778646747,-980.88,9.995e-05,2]
[348771632,1736778646757,-528.2,9.995e-05,2]
[348771633,1736778646767,-159.353239,9.995e-05,2]
[348771634,1736778646778,-500.0,9.995e-05,2]
[348771635,1736778646788,-1813.06,9.995e-05,2]
[348771636,1736778646798,-1102.59,9.995e-05,2]
[348771637,1736778646808,-500.0,9.995e-05,2]
[348771638,1736778646818,-1080.41,9.995e-05,2]
[348771639,1736778646827,-159.353239,9.995e-05,2]
[348771640,1736778646837,-500.0,9.995e-05,2]
[348771641,1736778646850,-500.0,9.995e-05,2]
[348771642,1736778646865,-500.92058106,9.995e-05,2]
[348771643,1736778646875,-184.235922,9.995e-05,2]
[348771644,1736778646885,-1433.26,9.995e-05,2]
[348771645,1736778646898,-1069.87,9.995e-05,2]
[348771646,1736778646908,-1622.71,9.995e-05,2]
[348771647,1736778646918,-1315.7,9.995e-05,2]
[348771648,1736778646929,-2066.13,9.995e-05,2]
[348771649,1736778646940,-500.0,9.995e-05,2]
[348771650,1736778646951,-3131.28,9.995e-05,2]
[348771651,1736778646961,-2442.54,9.995e-05,2]
[348771652,1736778646973,-1000.0,9.995e-05,2]
[348771653,1736778646983,-500.0,9.995e-05,2]
[348771654,1736778646993,-500.0,9.995e-05,2]
[348771655,1736778647003,-1222.0,9.996e-05,2]
[348771656,1736778647013,-1488.18,9.996e-05,2]
[348771657,1736778647024,-500.0,9.996e-05,2]
[348771658,1736778647035,-1347.72,9.996e-05,2]
[348771659,1736778647045,-169.97438,9.997e-05,2]
[348771660,1736778647055,-156.456816,9.997e-05,2]
[348771661,1736778647065,-156.456816,9.998e-05,2]
[348771662,1736778647077,-158.901735,9.998e-05,2]
[348771663,1736778647087,-159.353239,9.998e-05,2]
[348771664,1736778647098,-158.901736,9.998e-05,2]
[348771665,1736778647108,-1140.67258346,9.999e-05,3]
[348771666,1736778647117,-1207.58922413,9.999e-05,3]
[348771667,1736778647127,-1207.58922412,9.999e-05,3]
[348771668,1736778647137,-10665.10326697,9.999e-05,2]
[348771669,1736778647147,-500.0,9.999e-05,2]
[348771670,1736778647157,-500.0,9.999e-05,2]
[348771671,1736778647168,-2130.59,9.999e-05,2]
[348771672,1736778647177,-772.99,9.999e-05,2]
[348771673,1736778647187,-1612.9,9.999e-05,2]
[348771674,1736778647197,-1140.67258345,9.999e-05,3]
[348771675,1736778647207,-500.0,9.999e-05,2]
[348771676,1736778647216,-1182.1,9.999e-05,2]
[348771677,1736778647229,-2413.99,9.999e-05,2]
[348771678,1736778647239,-500.0,9.999e-05,2]
[348771679,1736778647249,-500.0,9.999e-05,2]
[348771680,1736778647263,-870.93,9.999e-05,2]
[348771681,1736778647273,-500.0,9.999e-05,2]
[348771682,1736778647283,-548.32,9.999e-05,2]
[348771683,1736778647293,-201.90107267,9.999e-05,2]
[348771684,1736778647303,-5931950.18813192,0.0001,2]
[348771685,1736778647333,-500.0,9.996e-05,2]
[348771686,1736778647343,-2275.33,0.0001,2]
[348771687,1736778647661,-500.0,9.987e-05,2]
[348771688,1736778647671,-500.0,9.987e-05,2]
[348771689,1736778647681,-500.0,9.987e-05,2]
[348771690,1736778647691,-163921.19962104,0.0001,2]
[348771691,1736778647700,-5073.79239818,0.0001,4]
[348771692,1736778647710,-400.0,0.0001,3]
[348771693,1736778647720,-745660.91843336,0.0001,2]
[348771694,1736778647733,-73183.90055692,0.0001,2]
[348771695,1736778647742,-1900.0,0.0001,3]
[348771696,1736778647757,-1375.983868,0.0001,2]
[348771697,1736778647767,-96702.66031453,0.0001,2]
[348771698,1736778647799,-584.5466732,0.0001,2]
[348771699,1736778647897,-108438.43770251,0.0001,2]
[348771700,1736778647907,-212.10952544,0.0001,2]
[348771701,1736778647916,-212.10952539,0.0001,2]
[348771702,1736778647928,-212.10952539,0.0001,2]
[348771703,1736778647938,-212.10952539,0.0001,2]
[348771704,1736778647947,-212.10952539,0.0001,2]
[348771705,1736778647958,-1015.93,0.0001,2]
[348771706,1736778647968,-994.82,0.0001,2]
[348771707,1736778647982,-212.10952539,0.00010003,2]
[348771708,1736778647992,-212.10952539,0.00010124,2]
[348771709,1736778648002,-500.0,0.00010136,2]
[348771710,1736778648014,-500.0,0.00010136,2]
[348771711,1736778648025,-500.0,0.00010136,2]
[348771712,1736778648036,-500.0,0.00010136,2]
[348771713,1736778648046,-500.0,0.00010136,2]
[348771714,1736778648055,-500.0,0.00010136,2]
[348771715,1736778648065,-500.0,0.00010136,2]
[348771716,1736778648077,-500.0,0.00010136,2]
[348771717,1736778648086,-500.0,0.00010136,2]
[348771718,1736778648097,-500.0,0.00010136,2]
[348771719,1736778648107,-500.0,0.00010136,2]
[348771720,1736778648118,-500.0,0.00010136,2]
[348771721,1736778648128,-500.0,0.00010136,2]
[348771722,1736778648139,-500.0,0.00010136,2]
[348771723,1736778648149,-500.0,0.00010136,2]
[348771724,1736778648160,-500.0,0.00010136,2]
[348771725,1736778648171,-500.0,0.00010136,2]
[348771726,1736778648181,-500.0,0.00010136,2]
[348771727,1736778648192,-500.0,0.00010136,2]
[348771728,1736778648203,-500.0,0.00010136,2]
[348771729,1736778648214,-500.0,0.00010136,2]
[348771730,1736778648228,-500.0,0.00010136,2]
[348771731,1736778648239,-500.0,0.00010136,2]
[348771732,1736778648250,-500.0,0.00010136,2]
[348771733,1736778648260,-500.0,0.00010136,2]
[348771734,1736778648270,-500.0,0.00010136,2]
[348771735,1736778648284,-500.0,0.00010136,2]
[348771736,1736778648295,-500.0,0.00010136,2]
[348771737,1736778648305,-500.0,0.00010136,2]
[348771738,1736778648315,-307.04577042,0.00010136,2]
[348771739,1736778648325,-500.0,0.00010136,2]
[348771740,1736778648335,-500.0,0.00010136,2]
[348771741,1736778648344,-500.0,0.00010136,2]
[348771742,1736778648354,-500.0,0.00010136,2]
[348771743,1736778648363,-500.0,0.00010136,2]
[348771744,1736778648374,-500.0,0.00010136,2]
[348771745,1736778648383,-641.51,0.00010136,2]
[348771746,1736778648394,-500.0,0.00010136,2]
[348771747,1736778648403,-500.0,0.00010136,2]
[348771748,1736778648413,-500.0,0.00010136,2]
[348771749,1736778648423,-500.0,0.00010136,2]
[348771750,1736778648433,-500.0,0.00010136,2]
[348771751,1736778648443,-500.0,0.00010136,2]
[348771752,1736778648453,-500.0,0.00010136,2]
[348771753,1736778648463,-500.0,0.00010136,2]
[348771754,1736778648476,-500.0,0.00010136,2]
[348771755,1736778648486,-500.0,0.00010136,2]
[348771756,1736778648495,-500.0,0.00010136,2]
[348771757,1736778648506,-500.0,0.00010136,2]
[348771758,1736778648516,-500.0,0.00010136,2]
[348771759,1736778648526,-500.0,0.00010136,2]
[348771760,1736778648536,-500.0,0.00010136,2]
[348771761,1736778648547,-500.0,0.00010136,2]
[348771762,1736778648557,-500.0,0.00010136,2]
[348771763,1736778648566,-500.0,0.00010136,2]
[348771764,1736778648577,-500.0,0.00010136,2]
[348771765,1736778648587,-500.0,0.00010136,2]
[348771766,1736778648598,-500.0,0.00010136,2]
[348771767,1736778648608,-679.14,0.00010137,2]
[348771768,1736778648618,-5000.0,0.00010169,2]
[348771769,1736778648628,-1000.0,0.00010175,2]
[348771770,1736778648639,-212.10952539,0.00010245,2]
[348771771,1736778648649,-913.78509,0.00010259,2]
[348771772,1736778648660,-791.44492,0.00010259,2]
[348771773,1736778648670,-595.98162,0.00010259,2]
[348771774,1736778648680,-605.532808,0.00010259,2]
[348771775,1736778648691,-169.97438,0.00010259,2]
[348771776,1736778648702,-156.456816,0.00010259,2]
[348771777,1736778648712,-161.871058,0.00010259,2]
[348771778,1736778648724,-547.09,0.00010261,2]
[348771779,1736778648735,-500.0,0.00010261,2]
[348771780,1736778648746,-450.0,0.00010261,2]
[348771781,1736778648756,-502.61109831,0.00010261,2]
[348771782,1736778648766,-500.0,0.00010261,2]
[348771783,1736778648777,-500.0,0.00010261,2]
[348771784,1736778648787,-500.0,0.00010261,2]
[348771785,1736778648797,-500.0,0.00010261,2]
[348771786,1736778648808,-502.05437485,0.00010261,2]
[348771787,1736778648819,-509.66435466,0.00010261,2]
[348771788,1736778648829,-564.25,0.00010261,2]
[348771789,1736778648839,-500.0,0.00010261,2]
[348771790,1736778648852,-500.0,0.00010261,2]
[348771791,1736778648862,-500.0,0.00010261,2]
[348771792,1736778648872,-310.98690242,0.00010261,2]
[348771793,1736778648883,-500.0,0.00010261,2]
[348771794,1736778648893,-500.0,0.00010261,2]
[348771795,1736778648903,-500.0,0.00010267,2]
[348771796,1736778648913,-500.0,0.00010267,2]
[348771797,1736778648924,-1556.1,0.00010267,2]
[348771798,1736778648935,-3430.53,0.00010267,2]
[348771799,1736778648946,-653.43,0.00010267,2]
[348771800,1736778648956,-1420.12,0.00010267,2]
[348771801,1736778648967,-2639.99,0.00010267,2]
[348771802,1736778648979,-4588.64,0.00010267,2]
[348771803,1736778648989,-594.07,0.00010267,2]
[348771804,1736778648999,-500.0,0.00010267,2]
[348771805,1736778649009,-501.94,0.00010267,2]
[348771806,1736778649021,-2905.46,0.00010267,2]
[348771807,1736778649031,-1140.05,0.00010267,2]
[348771808,1736778649042,-508.56461348,0.00010267,2]
[348771809,1736778649052,-1363.55,0.00010267,2]
[348771810,1736778649062,-2144.32,0.00010267,2]
[348771811,1736778649071,-500.0,0.00010267,2]
[348771812,1736778649081,-500.0,0.00010267,2]
[348771813,1736778649091,-500.0,0.00010267,2]
[348771814,1736778649101,-3831.6,0.00010267,2]
[348771815,1736778649111,-916.25,0.00010267,2]
[348771816,1736778649121,-633.85,0.00010267,2]
[348771817,1736778649132,-590.46,0.00010267,2]
[348771818,1736778649142,-1826.92,0.00010267,2]
[348771819,1736778649152,-1253.09,0.00010267,2]
[348771820,1736778649162,-538.77,0.00010267,2]
[348771821,1736778649171,-313.16220338,0.00010268,2]
[348771822,1736778649181,-500.0,0.00010268,2]
[348771823,1736778649191,-500.0,0.00010268,2]
[348771824,1736778649201,-500.0,0.00010268,2]
[348771825,1736778649211,-500.0,0.00010268,2]
[348771826,1736778649221,-500.0,0.00010268,2]
[348771827,1736778649233,-500.0,0.00010268,2]
[348771828,1736778649243,-344.99995757,0.00010268,2]
[348771829,1736778649253,-500.0,0.00010268,2]
[348771830,1736778649263,-500.0,0.00010268,2]
[348771831,1736778649273,-590.98970702,0.00010268,2]
[348771832,1736778649282,-500.0,0.00010268,2]
[348771833,1736778649292,-500.0,0.00010268,2]
[348771834,1736778649302,-500.0,0.00010268,2]
[348771835,1736778649312,-500.0,0.00010268,2]
[348771836,1736778649568,-500.0,0.00010268,2]
[348771837,1736778649578,-391.71059101,0.00010268,2]
[348771838,1736778649588,-500.0,0.00010268,2]
[348771839,1736778649597,-500.0,0.00010268,2]
[348771840,1736778649607,-500.59265729,0.00010268,2]
[348771841,1736778649617,-500.0,0.00010268,2]
[348771842,1736778649627,-500.0,0.00010268,2]
[348771843,1736778649638,-300.0,0.00010268,2]
[348771844,1736778649647,-500.0,0.00010268,2]
[348771845,1736778649658,-500.0,0.00010268,2]
[348771846,1736778649667,-500.0,0.00010268,2]
[348771847,1736778649677,-500.0,0.00010268,2]
[348771848,1736778649687,-500.0,0.00010268,2]
[348771849,1736778649697,-500.0,0.00010268,2]
[348771850,1736778649708,-500.0,0.00010268,2]
[348771851,1736778649718,-500.0,0.00010268,2]
[348771852,1736778649730,-500.0,0.00010268,2]
[348771853,1736778649740,-528.27924856,0.00010268,2]
[348771854,1736778649750,-500.0,0.00010268,2]
[348771855,1736778649759,-500.0,0.00010268,2]
[348771856,1736778649768,-500.0,0.00010268,2]
[348771857,1736778649778,-500.0,0.00010268,2]
[348771858,1736778649787,-500.0,0.00010268,2]
[348771859,1736778649797,-500.0,0.00010268,2]
[348771860,1736778649807,-500.0,0.00010268,2]
[348771861,1736778649816,-500.0,0.00010268,2]
[348771862,1736778649826,-500.0,0.00010268,2]
[348771863,1736778649836,-500.0,0.00010268,2]
[348771864,1736778649847,-500.0,0.00010268,2]
[348771865,1736778649860,-706.63577924,0.00010268,2]
[348771866,1736778649870,-500.90899813,0.00010268,2]
[348771867,1736778649880,-500.0,0.00010268,2]
[348771868,1736778649891,-500.0,0.00010268,2]
[348771869,1736778649900,-436.42594267,0.00010268,2]
[348771870,1736778649910,-500.0,0.00010268,2]
[348771871,1736778649920,-500.0,0.00010268,2]
[348771872,1736778649930,-500.0,0.00010268,2]
[348771873,1736778649940,-500.0,0.00010268,2]
[348771874,1736778649950,-500.0,0.00010268,2]
[348771875,1736778649960,-500.0,0.00010268,2]
[348771876,1736778649969,-500.0,0.00010268,2]
[348771877,1736778649982,-500.0,0.00010268,2]
[348771878,1736778649992,-500.0,0.00010268,2]
[348771879,1736778650001,-500.0,0.00010268,2]
[348771880,1736778650010,-500.0,0.00010268,2]
[348771881,1736778650021,-500.0,0.00010268,2]
[348771882,1736778650031,-500.0,0.00010268,2]
[348771883,1736778650041,-500.0,0.00010268,2]
[348771884,1736778650051,-500.0,0.00010268,2]
[348771885,1736778650061,-500.48007366,0.00010268,2]
[348771886,1736778650070,-500.0,0.00010268,2]
[348771887,1736778650080,-500.0,0.00010268,2]
[348771888,1736778650090,-500.0,0.00010268,2]
[348771889,1736778650100,-500.0,0.00010268,2]
[348771890,1736778650110,-500.0,0.00010268,2]
[348771891,1736778650119,-500.31264481,0.00010268,2]
[348771892,1736778650129,-500.0,0.00010268,2]
[348771893,1736778650139,-500.0,0.00010268,2]
[348771894,1736778650148,-500.0,0.00010268,2]
[348771895,1736778650158,-500.0,0.00010268,2]
[348771896,1736778650168,-501.45989915,0.00010268,2]
[348771897,1736778650178,-500.66630858,0.00010268,2]
[348771898,1736778650187,-500.0,0.00010268,2]
[348771899,1736778650197,-500.0,0.00010268,2]
[348771900,1736778650207,-313.4286998,0.00010268,2]
[348771901,1736778650216,-500.0,0.00010268,2]
[348771902,1736778650230,-500.0,0.00010268,2]
[348771903,1736778650240,-500.0,0.00010268,2]
[348771904,1736778650249,-500.0,0.00010268,2]
[348771905,1736778650259,-541.66,0.00010268,2]
[348771906,1736778650269,-303.93431284,0.00010268,2]
[348771907,1736778650278,-500.0,0.00010268,2]
[348771908,1736778650287,-500.0,0.00010268,2]
[348771909,1736778650297,-400.0,0.00010268,2]
[348771910,1736778650306,-500.0,0.00010268,2]
[348771911,1736778650315,-523.16,0.00010268,2]
[348771912,1736778650324,-500.0,0.00010268,2]
[348771913,1736778650334,-500.0,0.00010268,2]
[348771914,1736778650343,-500.0,0.00010268,2]
[348771915,1736778650353,-500.0,0.00010268,2]
[348771916,1736778650362,-500.0,0.00010268,2]
[348771917,1736778650371,-508.64,0.00010268,2]
[348771918,1736778650380,-500.0,0.00010268,2]
[348771919,1736778650390,-500.0,0.00010268,2]
[348771920,1736778650399,-593.66,0.00010268,2]
[348771921,1736778650409,-500.0,0.00010268,2]
[348771922,1736778650418,-557.21,0.00010268,2]
[348771923,1736778650428,-495.42761501,0.00010268,2]
[348771924,1736778650437,-500.0,0.00010268,2]
[348771925,1736778650446,-630.1766194,0.00010268,2]
[348771926,1736778650455,-533.26,0.00010268,2]
[348771927,1736778650465,-555.26177044,0.00010268,2]
[348771928,1736778650477,-158.9431274,0.00010268,2]
[348771929,1736778650487,-500.0,0.00010268,2]
[348771930,1736778650496,-500.0,0.00010268,2]
[348771931,1736778650505,-500.0,0.00010268,2]
[348771932,1736778650515,-500.0,0.00010268,2]
[348771933,1736778650524,-500.0,0.00010268,2]
[348771934,1736778650533,-500.0,0.00010268,2]
[348771935,1736778650542,-602.05,0.00010268,2]
[348771936,1736778650552,-500.0,0.00010268,2]
[348771937,1736778650561,-500.0,0.00010268,2]
[348771938,1736778650571,-500.0,0.00010268,2]
[348771939,1736778650580,-500.0,0.00010268,2]
[348771940,1736778650589,-500.0,0.00010268,2]
[348771941,1736778650598,-500.0,0.00010268,2]
[348771942,1736778650607,-500.0,0.00010268,2]
[348771943,1736778650617,-296.12644785,0.00010268,2]
[348771944,1736778650626,-500.0,0.00010268,2]
[348771945,1736778650635,-500.0,0.00010268,2]
[348771946,1736778650644,-500.0,0.00010268,2]
[348771947,1736778650653,-595.1,0.00010268,2]
[348771948,1736778650662,-500.0,0.00010268,2]
[348771949,1736778650671,-500.0,0.00010268,2]
[348771950,1736778650681,-500.0,0.00010268,2]
[348771951,1736778650690,-500.0,0.00010268,2]
[348771952,1736778650699,-514.31,0.00010268,2]
[348771953,1736778650708,-500.0,0.00010268,2]
[348771954,1736778650717,-500.0,0.00010268,2]
[348771955,1736778650728,-500.0,0.00010268,2]
[348771956,1736778650738,-500.0,0.00010268,2]
[348771957,1736778650747,-506.05,0.00010268,2]
[348771958,1736778650756,-548.7,0.00010268,2]
[348771959,1736778650765,-500.0,0.00010268,2]
[348771960,1736778650774,-500.0,0.00010268,2]
[348771961,1736778650782,-500.0,0.00010268,2]
[348771962,1736778650792,-576.76,0.00010268,2]
[348771963,1736778650801,-500.0,0.00010268,2]
[348771964,1736778650810,-500.0,0.00010268,2]
[348771965,1736778650819,-500.0,0.00010268,2]
[348771966,1736778650829,-500.0,0.00010268,2]
[348771967,1736778650838,-500.0,0.00010268,2]
[348771968,1736778650848,-500.0,0.00010268,2]
[348771969,1736778650858,-500.0,0.00010268,2]
[348771970,1736778650867,-576.22247137,0.00010268,2]
[348771971,1736778650876,-500.0,0.00010268,2]
[348771972,1736778650886,-500.0,0.00010268,2]
[348771973,1736778650895,-500.0,0.00010268,2]
[348771974,1736778650905,-500.0,0.00010268,2]
[348771975,1736778650915,-500.0,0.00010268,2]
[348771976,1736778650925,-500.0,0.00010268,2]
[348771977,1736778650935,-500.0,0.00010268,2]
[348771978,1736778650943,-500.0,0.00010268,2]
[348771979,1736778650952,-500.0,0.00010268,2]
[348771980,1736778650962,-500.0,0.00010268,2]
[348771981,1736778650971,-500.0,0.00010268,2]
[348771982,1736778650984,-500.0,0.00010268,2]
[348771983,1736778650994,-500.0,0.00010268,2]
[348771984,1736778651002,-500.0,0.00010268,2]
[348771985,1736778651013,-500.0,0.00010268,2]
[348771986,1736778651022,-729.91,0.00010268,2]
[348771987,1736778651031,-500.0,0.00010268,2]
[348771988,1736778651040,-500.0,0.00010268,2]